bitfinex/quotes_SOLUSD_20250718
["timestamp","ask_amount","ask_price","bid_price","bid_amount"]
[1752861211387,7.80416267,178.6,178.59,0.200048]
[1752861212023,0.7,178.6,178.59,0.200048]
[1752861213483,89.7,178.61,178.59,7.30421067]
[1752861213682,90.4,178.61,178.59,7.30421067]
[1752861213890,0.7,178.6,178.59,7.30421067]
[1752861214107,0.7,178.6,178.59,0.200048]
[1752861214685,0.7,178.6,178.59,7.30421067]
[1752861215487,0.7,178.6,178.59,7.33421067]
[1752861215806,0.7,178.62,178.59,12.93358802]
[1752861216108,0.7,178.62,178.61,7.10416267]
[1752861216612,0.7,178.62,178.6,7.10416267]
[1752861216807,5.59819237,178.63,178.59,0.230048]
[1752861217009,0.7,178.61,178.59,0.230048]
[1752861217189,0.7,178.6,178.59,7.33421067]
[1752861217388,0.7,178.6,178.59,0.230048]
[1752861218112,0.7,178.62,178.59,7.33421067]
[1752861218301,0.7,178.62,178.6,7.10416267]
[1752861218614,5.65794071,178.64,178.61,7.10416267]
[1752861219004,0.7,178.63,178.61,7.10416267]
[1752861219409,0.7,178.62,178.61,7.10416267]
[1752861220505,90.4,178.62,178.61,7.10416267]
[1752861221214,90.4,178.62,178.6,7.10416267]
[1752861221711,90.4,178.62,178.59,0.230048]
[1752861221712,0.7,178.61,178.59,0.230048]
[1752861222492,89.7,178.62,178.59,7.33421067]
[1752861222713,0.7,178.61,178.59,7.33421067]
[1752861224211,0.7,178.61,178.6,7.10416267]
[1752861224416,89.7,178.62,178.6,7.10416267]
[1752861224708,90.4,178.62,178.61,7.10416267]
[1752861229117,90.4,178.62,178.59,0.230048]
[1752861229321,89.7,178.62,178.6,7.10416267]
[1752861229616,90.36,178.62,178.6,7.10416267]
[1752861230019,89.7,178.62,178.61,7.10416267]
[1752861231907,89.7,178.62,178.61,13.02295333]
[1752861232110,0.06,178.64,178.61,13.02295333]
[1752861232318,0.06,178.64,178.63,7.10416267]
[1752861232509,0.06,178.64,178.63,36.80416267]
[1752861233526,0.06,178.64,178.63,42.72232647]
[1752861234225,0.06,178.64,178.63,42.40232647]
[1752861237134,0.06,178.64,178.63,42.72232647]
[1752861237638,0.06,178.64,178.63,42.40232647]
[1752861238421,0.72,178.64,178.63,29.7]
[1752861238632,0.72,178.64,178.6,26.0]
[1752861238809,0.72,178.64,178.63,7.10416267]
[1752861239822,0.72,178.64,178.62,29.7]
[1752861240120,0.72,178.64,178.63,7.10416267]
[1752861240914,0.72,178.64,178.62,7.10416267]
[1752861241330,0.66,178.63,178.62,7.10416267]
[1752861243916,0.66,178.63,178.6,55.7]
[1752861244117,0.66,178.63,178.62,7.10416267]
[1752861244837,89.76,178.64,178.62,12.70263465]
[1752861245036,89.76,178.64,178.63,7.10416267]
[1752861246119,89.76,178.64,178.63,13.02232647]
[1752861248043,89.76,178.64,178.63,12.70232647]
[1752861250020,0.06,178.64,178.63,12.70232647]
[1752861253223,0.72,178.64,178.63,36.78416267]
[1752861254038,0.06,178.64,178.63,36.78416267]
[1752861254646,0.06,178.64,178.63,42.38232647]
[1752861255148,0.06,178.64,178.63,42.70232647]
[1752861255830,0.06,178.64,178.63,42.38232647]
[1752861263161,0.06,178.64,178.63,35.2781638]
[1752861263332,0.06,178.64,178.63,42.38232647]
[1752861263860,0.75,178.66,178.64,5.73780809]
[1752861264044,0.75,178.66,178.65,29.66]
[1752861264434,0.75,178.66,178.65,36.76416267]
[1752861265336,0.06,178.66,178.65,42.36169975]
[1752861265838,0.06,178.66,178.65,49.46586242]
[1752861266056,0.06,178.66,178.65,49.78586242]
[1752861268454,0.06,178.67,178.65,49.78586242]
[1752861268755,0.06,178.67,178.66,7.42416267]
[1752861269437,0.75,178.67,178.65,35.25753708]
[1752861269944,0.06,178.67,178.66,12.84136244]
[1752861271137,0.06,178.67,178.66,13.16136244]
[1752861271466,0.06,178.67,178.66,12.84136244]
[1752861272335,0.75,178.67,178.66,12.84136244]
[1752861272735,0.75,178.67,178.66,12.70138644]
[1752861273168,0.06,178.67,178.66,12.70138644]
[1752861276676,0.06,178.68,178.67,7.18413067]
[1752861276881,0.06,178.68,178.67,36.80413067]
[1752861277254,0.06,178.68,178.67,42.40104117]
[1752861278082,0.75,178.68,178.67,42.40104117]
[1752861279354,0.75,178.68,178.67,42.32107317]
[1752861279750,13.45092524,178.68,178.62,0.03]
[1752861279996,7.10416267,178.65,178.62,0.03]
[1752861280191,7.10416267,178.64,178.62,0.03]
[1752861280473,7.79416267,178.64,178.62,0.03]
[1752861280676,0.69,178.63,178.62,0.03]
[1752861282570,13.39232647,178.63,178.62,0.03]
[1752861283357,0.69,178.63,178.62,0.03]
[1752861283759,0.610014,178.63,178.62,0.03]
[1752861286993,6.2081778,178.63,178.62,0.03]
[1752861289081,0.610014,178.63,178.62,0.03]
[1752861292023,6.2081778,178.63,178.62,0.03]
[1752861292285,30.09702444,178.63,178.62,0.03]
[1752861299694,22.99286177,178.63,178.62,0.03]
[1752861299868,30.09702444,178.63,178.62,0.03]
[1752861301102,0.610014,178.63,178.62,0.03]
[1752861301294,12.70168511,178.66,178.62,0.03]
[1752861301597,0.68,178.65,178.62,0.03]
[1752861302106,12.70168511,178.66,178.62,0.03]
[1752861302290,0.68,178.64,178.62,0.03]
[1752861302982,0.68,178.64,178.62,7.13416267]
[1752861303380,0.68,178.64,178.62,0.03]
[1752861303586,54.14884664,178.63,178.59,0.03]
[1752861303785,7.10416267,178.61,178.59,0.03]
[1752861303972,7.10416267,178.6,178.59,0.03]
[1752861304173,7.78416267,178.6,178.59,0.03]
[1752861304793,0.68,178.6,178.59,0.03]
[1752861304974,0.68,178.62,178.59,7.13416267]
[1752861305170,194.26468397,178.63,178.59,7.13416267]
[1752861305494,0.68,178.61,178.59,7.13416267]
[1752861305682,154.17827975,178.63,178.59,7.13416267]
[1752861306003,89.7,178.62,178.61,7.10416267]
[1752861310175,89.76,178.67,178.61,13.13295333]
[1752861310392,89.76,178.67,178.66,7.10416267]
[1752861310975,0.06,178.67,178.66,7.53416267]
[1752861311513,0.06,178.67,178.64,26.0]
[1752861311800,0.06,178.67,178.66,7.10416267]
[1752861312578,0.06,178.67,178.64,55.56]
[1752861312778,0.06,178.67,178.58,22.84838397]
[1752861312779,0.68,178.66,178.65,7.10416267]
[1752861312986,0.68,178.66,178.64,7.10416267]
[1752861313193,0.68,178.65,178.64,7.10416267]
[1752861313397,0.68,178.65,178.63,7.10416267]
[1752861313600,0.68,178.65,178.61,7.10416267]
[1752861314108,0.68,178.65,178.63,7.10416267]
[1752861314688,0.68,178.65,178.64,7.10416267]
[1752861315507,0.68,178.65,178.63,7.10416267]
[1752861315806,0.68,178.64,178.63,7.10416267]
[1752861318216,89.7,178.66,178.63,7.10416267]
[1752861318424,90.38,178.66,178.64,7.10416267]
[1752861318706,89.7,178.66,178.65,7.10416267]
[1752861319926,90.38,178.66,178.64,7.10416267]
[1752861320223,0.68,178.65,178.62,5.59843945]
[1752861320389,89.7,178.66,178.64,7.10416267]
[1752861320590,89.7,178.66,178.65,7.10416267]
[1752861321317,90.38,178.66,178.65,7.10416267]
[1752861321708,89.7,178.66,178.62,5.59842003]
[1752861321906,89.7,178.66,178.65,7.10416267]
[1752861322107,90.38,178.66,178.65,7.10416267]
[1752861322526,95.97729009,178.66,178.61,5.59872242]
[1752861322839,0.68,178.65,178.63,7.10416267]
[1752861323136,0.68,178.65,178.64,7.10416267]
[1752861324102,89.7,178.66,178.64,7.10416267]
[1752861324314,90.38,178.66,178.65,7.10416267]
[1752861324817,90.38,178.66,178.64,7.10416267]
[1752861324997,0.68,178.65,178.64,7.10416267]
[1752861325494,89.7,178.66,178.64,7.10416267]
[1752861325694,90.38,178.66,178.64,7.10416267]
[1752861325944,6.27767514,178.65,178.63,7.10416267]
[1752861326230,0.68,178.64,178.62,7.10416267]
[1752861326434,0.68,178.64,178.63,7.10416267]
[1752861327424,0.68,178.64,178.62,7.10416267]
[1752861328021,0.68,178.63,178.59,1.5622]
[1752861328223,0.68,178.62,178.61,7.10416267]
[1752861328409,90.38,178.64,178.61,7.10416267]
[1752861328611,0.68,178.63,178.62,7.10416267]
[1752861328906,0.68,178.63,178.59,0.03]
[1752861329127,0.68,178.62,178.61,7.10416267]
[1752861329434,0.68,178.62,178.6,7.10416267]
[1752861329800,16.78468397,178.6,178.58,0.03]
[1752861330005,50.48945439,178.59,178.58,0.03]
[1752861330206,54.08884664,178.59,178.58,0.03]
[1752861330401,58.2717946,178.59,178.58,0.03]
[1752861331309,28.7517946,178.59,178.58,0.03]
[1752861331513,58.2717946,178.59,178.58,0.03]
[1752861331723,63.87121226,178.59,178.58,0.03]
[1752861332426,59.6882643,178.59,178.58,0.03]
[1752861332629,63.86878347,178.59,178.58,0.03]
[1752861334032,4.86051917,178.59,178.58,0.03]
[1752861334206,0.68,178.59,178.58,0.03]
[1752861335225,6.27941766,178.59,178.58,0.03]
[1752861335404,10.45784814,178.59,178.58,0.03]
[1752861335608,6.27941766,178.59,178.58,0.03]
[1752861336136,32.27941766,178.59,178.58,0.03]
[1752861337035,6.27941766,178.59,178.58,0.03]
[1752861337225,32.27941766,178.59,178.58,0.03]
[1752861341226,39.38358033,178.59,178.58,0.03]
[1752861342035,32.27941766,178.59,178.58,0.03]
[1752861342208,39.38358033,178.59,178.58,0.03]
[1752861342406,60.34442753,178.59,178.58,0.03]
[1752861342827,16.78468397,178.58,178.57,0.03]
[1752861343028,64.26660987,178.58,178.54,0.03]
[1752861343208,7.10416267,178.55,178.54,0.03]
[1752861343533,36.60416267,178.55,178.54,0.03]
[1752861343731,37.28416267,178.55,178.54,0.03]
[1752861343918,0.68,178.55,178.54,0.03]
[1752861345232,5.60061935,178.56,178.54,0.03]
[1752861346520,6.32061935,178.56,178.54,0.03]
[1752861346721,5.60061935,178.56,178.54,0.03]
[1752861347022,0.72,178.55,178.54,0.03]
[1752861347541,90.42,178.55,178.54,0.03]
[1752861347925,96.02067208,178.55,178.54,0.03]
[1752861349814,89.7,178.55,178.54,0.03]
[1752861351842,89.7,178.55,178.47,50.66166403]
[1752861352141,6.32067314,178.55,178.52,7.10416267]
[1752861352337,0.72,178.54,178.52,7.10416267]
[1752861353317,0.72,178.54,178.53,7.10416267]
[1752861353934,95.30046449,178.56,178.53,7.10416267]
[1752861354150,96.02046449,178.56,178.53,7.10416267]
[1752861354446,0.72,178.55,178.53,7.10416267]
[1752861354833,0.72,178.54,178.49,5.63244817]
[1752861355041,90.42,178.54,178.5,7.10416267]
[1752861355247,0.72,178.53,178.5,7.10416267]
[1752861355541,0.72,178.52,178.49,0.03]
[1752861355952,5.60224089,178.5,178.49,0.03]
[1752861356450,6.32224089,178.5,178.49,0.03]
[1752861360650,0.72,178.5,178.49,0.03]
[1752861361031,14.00313924,178.54,178.49,0.03]
[1752861361032,26.0,178.53,178.49,7.13416267]
[1752861361237,26.0,178.53,178.51,7.10416267]
[1752861361238,0.72,178.53,178.51,7.10416267]
[1752861361551,0.72,178.52,178.51,7.10416267]
[1752861361748,0.72,178.52,178.5,7.10416267]
[1752861362530,0.72,178.51,178.49,0.03]
[1752861362754,7.82416267,178.51,178.49,0.03]
[1752861362933,7.10416267,178.5,178.49,0.03]
[1752861363136,37.28416267,178.5,178.49,0.03]
[1752861363356,54.06884664,178.5,178.49,0.03]
[1752861363648,59.67108753,178.5,178.49,0.03]
[1752861367238,63.84209669,178.5,178.49,0.03]
[1752861367859,34.38209669,178.5,178.49,0.03]
[1752861368170,63.84209669,178.5,178.49,0.03]
[1752861368749,39.95325005,178.5,178.49,0.03]
[1752861368943,6.32224089,178.5,178.49,0.03]
[1752861369145,147.9,178.52,178.49,7.13416267]
[1752861369954,0.72,178.51,178.49,0.03]
[1752861370462,0.72,178.5,178.49,0.03]
[1752861370960,2.78616565,178.53,178.49,7.13416267]
[1752861371159,0.06,178.56,178.52,7.10416267]
[1752861371376,0.06,178.56,178.55,7.10416267]
[1752861380247,0.06,178.56,178.55,19.80899742]
[1752861380669,0.06,178.56,178.55,44.45628139]
[1752861380989,0.06,178.59,178.56,16.78468397]
[1752861381192,0.06,178.6,178.58,7.10416267]
[1752861381398,0.06,178.6,178.56,24.44888248]
[1752861381399,0.06,178.6,178.59,33.10416267]
[1752861381881,0.06,178.6,178.59,38.70358033]
[1752861382871,0.06,178.6,178.59,68.12358033]
[1752861386877,89.7,178.66,178.59,68.12358033]
[1752861387088,89.7,178.66,178.65,7.10416267]
[1752861387266,0.78,178.67,178.65,7.10416267]
[1752861387464,0.78,178.67,178.66,7.10416267]
[1752861388991,0.06,178.67,178.66,7.10416267]
[1752861389376,0.06,178.67,178.66,12.70138644]
[1752861389974,0.06,178.67,178.66,5.59722377]
[1752861390176,0.06,178.67,178.66,12.70138644]
[1752861391494,0.06,178.67,178.66,7.10416267]
[1752861391889,0.06,178.67,178.66,12.70138644]
[1752861393074,0.06,178.67,178.66,7.10416267]
[1752861393570,0.78,178.67,178.66,7.10416267]
[1752861393775,0.78,178.67,178.58,6.6327]
[1752861393991,89.7,178.66,178.62,7.10416267]
[1752861394294,90.42,178.65,178.62,7.10416267]
[1752861394501,0.72,178.64,178.62,7.10416267]
[1752861394796,0.72,178.63,178.61,7.10416267]
[1752861394993,6.31817952,178.63,178.61,7.10416267]
[1752861395295,0.72,178.62,178.61,7.10416267]
[1752861396900,0.72,178.64,178.61,7.10416267]
[1752861397076,0.72,178.63,178.62,7.10416267]
[1752861397483,0.72,178.63,178.61,7.10416267]
[1752861397699,0.72,178.62,178.61,7.10416267]
[1752861398598,0.72,178.64,178.61,7.10416267]
[1752861398792,0.72,178.64,178.63,7.10416267]
[1752861399778,6.31785178,178.64,178.62,7.10416267]
[1752861399974,0.72,178.63,178.62,7.10416267]
[1752861400803,90.42,178.63,178.62,7.10416267]
[1752861406395,89.7,178.63,178.62,12.70263988]
[1752861406694,90.41,178.65,178.62,7.10416267]
[1752861406886,89.7,178.65,178.64,7.10416267]
[1752861407495,90.41,178.65,178.64,7.10416267]
[1752861410090,96.00753708,178.65,178.64,7.10416267]
[1752861410602,90.41,178.65,178.64,7.10416267]
[1752861411581,89.7,178.65,178.64,7.10416267]
[1752861411797,89.76,178.67,178.64,12.70193586]
[1752861412000,89.76,178.67,178.66,7.10416267]
[1752861412001,0.06,178.67,178.66,7.10416267]
[1752861413711,0.77,178.67,178.63,29.34]
[1752861414200,0.77,178.67,178.6,34.94900313]
[1752861414406,89.7,178.66,178.64,7.10416267]
[1752861414594,0.71,178.65,178.64,7.10416267]
[1752861415119,89.7,178.66,178.64,7.10416267]
[1752861415294,89.7,178.66,178.65,7.10416267]
[1752861415617,90.41,178.66,178.65,7.10416267]
[1752861420515,96.00725864,178.66,178.61,5.5987136]
[1752861420716,0.71,178.65,178.64,7.10416267]
[1752861420912,0.71,178.65,178.6,29.35]
[1752861420913,0.71,178.65,178.63,7.10416267]
[1752861421718,0.71,178.65,178.64,7.10416267]
[1752861422122,6.30753708,178.65,178.6,34.94900699]
[1752861422294,90.41,178.64,178.61,7.10416267]
[1752861422491,0.71,178.63,178.61,7.10416267]
[1752861422692,0.71,178.62,178.61,7.10416267]
[1752861422896,89.7,178.64,178.61,7.10416267]
[1752861423097,89.7,178.64,178.63,7.10416267]
[1752861423937,90.41,178.64,178.63,7.10416267]
[1752861424615,89.7,178.64,178.63,7.10416267]
[1752861424797,89.76,178.67,178.63,12.70232647]
[1752861424996,89.76,178.67,178.66,7.10416267]
[1752861426129,89.76,178.67,178.66,12.70138644]
[1752861426130,0.06,178.67,178.66,12.70138644]
[1752861430113,0.06,178.67,178.66,42.00138644]
[1752861430829,0.06,178.67,178.66,36.40416267]
[1752861431047,0.06,178.67,178.66,29.3]
[1752861431330,90.47,178.67,178.65,7.10416267]
[1752861431627,0.71,178.66,178.63,29.28]
[1752861431807,89.76,178.67,178.65,7.10416267]
[1752861432133,89.76,178.67,178.63,34.87789812]
[1752861432337,89.76,178.67,178.66,7.10416267]
[1752861432706,90.47,178.67,178.66,7.10416267]
[1752861433043,89.76,178.67,178.66,7.10416267]
[1752861433405,0.06,178.67,178.66,36.38416267]
[1752861434033,0.06,178.67,178.66,41.98138644]
[1752861436603,0.06,178.67,178.66,36.38416267]
[1752861436920,0.06,178.67,178.66,41.98138644]
[1752861438933,0.06,178.67,178.66,36.38416267]
[1752861439511,0.06,178.67,178.66,41.98138644]
[1752861440142,0.73,178.67,178.66,36.38416267]
[1752861440437,0.73,178.67,178.66,29.28]
[1752861441346,0.73,178.67,178.66,36.38416267]
[1752861442138,0.73,178.67,178.6,40.02717092]
[1752861442438,96.02691397,178.67,178.62,7.10416267]
[1752861442608,0.67,178.66,178.63,29.26]
[1752861443207,0.67,178.66,178.63,36.36416267]
[1752861443740,0.67,178.66,178.64,7.10416267]
[1752861444440,0.67,178.66,178.65,7.10416267]
[1752861445113,89.7,178.65,178.62,36.36416267]
[1752861445318,0.67,178.64,178.62,36.36416267]
[1752861445710,0.67,178.64,178.62,29.26]
[1752861446012,0.67,178.64,178.62,36.36416267]
[1752861446208,0.67,178.64,178.62,29.26]
[1752861446427,0.67,178.64,178.62,36.36416267]
[1752861446931,89.7,178.65,178.63,7.10416267]
[1752861447439,0.67,178.64,178.63,7.10416267]
[1752861448337,0.67,178.64,178.62,36.36416267]
[1752861448518,0.67,178.63,178.62,36.36416267]
[1752861450238,0.67,178.63,178.62,7.10416267]
[1752861451326,0.67,178.63,178.62,7.13416267]
[1752861452440,89.7,178.65,178.62,7.13416267]
[1752861452627,89.7,178.65,178.64,7.10416267]
[1752861453022,90.37,178.65,178.64,7.10416267]
[1752861453641,90.37,178.65,178.63,36.34416267]
[1752861453845,0.67,178.64,178.63,36.34416267]
[1752861454932,0.67,178.64,178.63,7.10416267]
[1752861455745,89.7,178.65,178.63,7.10416267]
[1752861455935,0.67,178.64,178.63,7.10416267]
[1752861456652,89.7,178.65,178.63,7.10416267]
[1752861456835,89.7,178.65,178.64,36.34416267]
[1752861459956,0.73,178.67,178.64,36.34416267]
[1752861461235,0.06,178.67,178.64,36.34416267]
[1752861461429,0.67,178.66,178.64,36.34416267]
[1752861461831,0.06,178.67,178.65,7.10416267]
[1752861462039,0.06,178.67,178.66,36.32416267]
[1752861463943,0.06,178.67,178.66,41.92138644]
[1752861472238,0.06,178.67,178.66,34.81722377]
[1752861472439,0.06,178.67,178.66,41.92138644]
[1752861476848,0.54,178.71,178.66,42.04138644]
[1752861477052,0.54,178.71,178.7,7.10416267]
[1752861477248,0.54,178.71,178.7,36.30416267]
[1752861479557,0.2,178.73,178.7,36.30416267]
[1752861479758,0.2,178.73,178.71,7.10416267]
[1752861479759,0.86,178.73,178.71,7.10416267]
[1752861479960,0.06,178.72,178.71,7.10416267]
[1752861480668,0.2,178.73,178.71,14.32832534]
[1752861480854,0.2,178.73,178.72,43.50832534]
[1752861481054,0.2,178.73,178.72,49.10367001]
[1752861481253,0.06,178.75,178.72,49.10367001]
[1752861481450,0.06,178.75,178.74,14.20832534]
[1752861481769,0.72,178.78,178.74,43.94779719]
[1752861481770,0.06,178.78,178.74,43.94779719]
[1752861481948,0.06,178.78,178.76,7.10416267]
[1752861482293,0.2,178.8,178.77,16.78468397]
[1752861482466,0.2,178.81,178.79,33.10416267]
[1752861482662,0.2,178.81,178.8,36.28416267]
[1752861482866,0.2,178.81,178.8,29.3]
[1752861483070,0.2,178.81,178.8,36.40416267]
[1752861483244,0.2,178.81,178.8,41.99700383]
[1752861483859,0.2,178.81,178.8,36.28416267]
[1752861484057,0.2,178.81,178.8,29.18]
[1752861484376,0.86,178.81,178.8,36.28416267]
[1752861484872,0.86,178.81,178.8,29.18]
[1752861485376,0.86,178.81,178.79,7.10416267]
[1752861485377,6.45252838,178.81,178.74,55.48325619]
[1752861485679,0.66,178.8,178.79,7.10416267]
[1752861485977,0.66,178.8,178.78,36.28416267]
[1752861486178,0.66,178.8,178.79,7.10416267]
[1752861486352,0.2,178.81,178.78,29.18]
[1752861486554,0.2,178.81,178.8,7.10416267]
[1752861486962,0.2,178.81,178.79,7.10416267]
[1752861487169,5.79255807,178.81,178.79,7.10416267]
[1752861487379,0.66,178.8,178.78,36.28416267]
[1752861487670,0.66,178.8,178.78,7.10416267]
[1752861488669,0.2,178.81,178.78,7.10416267]
[1752861488872,0.66,178.8,178.78,7.10416267]
[1752861489169,0.66,178.8,178.79,7.10416267]
[1752861489354,0.66,178.8,178.79,36.26416267]
[1752861489560,0.2,178.81,178.79,36.26416267]
[1752861489746,5.79256508,178.81,178.79,29.16]
[1752861490170,5.79256508,178.81,178.75,5.59440535]
[1752861490171,0.66,178.8,178.78,29.16]
[1752861490549,0.66,178.8,178.77,7.10416267]
[1752861490756,0.66,178.8,178.77,36.26416267]
[1752861490974,0.66,178.8,178.77,29.16]
[1752861491360,0.66,178.8,178.78,7.10416267]
[1752861492664,6.25284564,178.8,178.77,29.16]
[1752861492873,0.66,178.79,178.77,29.16]
[1752861493049,0.66,178.79,178.77,36.26416267]
[1752861493249,0.66,178.78,178.77,36.26416267]
[1752861494881,0.66,178.78,178.77,7.10416267]
[1752861495373,0.66,178.78,178.76,29.16]
[1752861495679,95.29284564,178.8,178.77,7.10416267]
[1752861495976,95.29284564,178.8,178.76,36.26416267]
[1752861496150,0.67,178.79,178.76,36.26416267]
[1752861496351,0.67,178.78,178.76,36.26416267]
[1752861497561,90.37,178.8,178.77,7.10416267]
[1752861497782,90.37,178.8,178.79,7.10416267]
[1752861498273,90.37,178.8,178.78,36.26416267]
[1752861498451,89.7,178.8,178.78,36.26416267]
[1752861498656,0.67,178.79,178.78,36.26416267]
[1752861499854,0.67,178.79,178.78,36.32608067]
[1752861500292,89.7,178.8,178.78,36.32608067]
[1752861500457,90.37,178.8,178.79,7.10416267]
[1752861500981,89.7,178.8,178.79,7.10416267]
[1752861501372,0.2,178.81,178.79,7.10416267]
[1752861501579,0.2,178.81,178.78,34.8151907]
[1752861501580,0.2,178.81,178.8,36.26416267]
[1752861502084,0.2,178.81,178.8,41.85700383]
[1752861503558,0.2,178.81,178.8,29.16]
[1752861503785,0.87,178.81,178.8,29.16]
[1752861503957,0.87,178.81,178.8,36.26416267]
[1752861504590,0.87,178.81,178.8,29.16]
[1752861504759,0.87,178.81,178.79,7.10416267]
[1752861504961,0.2,178.81,178.8,29.16]
[1752861505156,0.2,178.81,178.78,7.10416267]
[1752861505379,5.79257079,178.81,178.77,7.10416267]
[1752861505680,0.67,178.8,178.73,5.59503161]
[1752861505885,90.37,178.8,178.76,7.10416267]
[1752861506059,0.67,178.79,178.76,36.24416267]
[1752861506776,0.67,178.79,178.76,29.14]
[1752861508162,6.26318073,178.79,178.76,29.14]
[1752861508385,0.67,178.78,178.76,29.14]
[1752861508587,0.67,178.78,178.76,36.24416267]
[1752861508765,0.67,178.79,178.76,36.24416267]
[1752861509294,0.67,178.78,178.76,36.24416267]
[1752861509865,0.67,178.77,178.76,36.24416267]
[1752861511367,0.67,178.77,178.76,29.14]
[1752861511368,6.26377971,178.77,178.76,29.14]
[1752861511570,6.26377971,178.77,178.72,26.0]
[1752861511571,13.36794238,178.77,178.72,29.14]
[1752861511788,0.67,178.76,178.72,36.24416267]
[1752861511995,90.37,178.76,178.72,36.24416267]
[1752861512176,0.67,178.75,178.72,29.14]
[1752861512375,89.7,178.76,178.72,36.24416267]
[1752861512584,0.67,178.74,178.72,36.24416267]
[1752861512988,90.37,178.76,178.73,7.10416267]
[1752861513199,90.37,178.76,178.74,7.10416267]
[1752861513490,90.37,178.76,178.74,36.24416267]
[1752861513698,90.37,178.76,178.75,7.10416267]
[1752861513892,89.7,178.76,178.75,7.10416267]
[1752861514291,0.67,178.77,178.75,7.10416267]
[1752861514673,0.67,178.76,178.74,29.14]
[1752861514883,0.67,178.76,178.74,36.24416267]
[1752861515089,12.6977883,178.78,178.74,36.30609467]
[1752861515296,0.67,178.75,178.74,36.30609467]
[1752861515485,0.67,178.77,178.74,36.30609467]
[1752861516100,0.67,178.76,178.74,36.30609467]
[1752861517481,12.6977883,178.78,178.74,0.061932]
[1752861517794,0.67,178.75,178.74,29.201932]
[1752861518178,0.67,178.75,178.74,36.30609467]
[1752861518608,6.26362563,178.78,178.74,36.30609467]
[1752861518783,0.06,178.8,178.74,36.30609467]
[1752861518784,0.67,178.77,178.74,36.30609467]
[1752861519270,0.67,178.77,178.74,36.24416267]
[1752861520203,5.59352201,178.78,178.74,36.24416267]
[1752861520383,0.67,178.76,178.74,36.24416267]
[1752861521003,0.67,178.75,178.72,0.03]
[1752861521204,6.2645936,178.75,178.72,0.03]
[1752861521502,7.10416267,178.74,178.72,0.03]
[1752861521802,7.77416267,178.74,178.72,0.03]
[1752861521979,0.67,178.73,178.72,0.03]
[1752861524004,6.26503161,178.73,178.72,0.03]
[1752861524720,13.36919428,178.73,178.72,0.03]
[1752861527340,13.30725928,178.73,178.72,0.03]
[1752861534222,6.22309661,178.73,178.72,0.03]
[1752861534648,13.32725928,178.73,178.72,0.03]
[1752861536043,5.59471858,178.74,178.72,0.03]
[1752861536335,6.28471858,178.74,178.72,0.03]
[1752861537427,0.69,178.73,178.72,0.03]
[1752861537635,5.59471858,178.74,178.72,0.03]
[1752861537828,0.69,178.73,178.72,0.03]
[1752861538016,26.69,178.75,178.72,7.13416267]
[1752861538207,26.0,178.75,178.72,7.13416267]
[1752861538925,26.69,178.75,178.72,7.13416267]
[1752861539124,0.06,178.73,178.72,7.13416267]
[1752861543178,0.06,178.73,178.72,0.03]
[1752861543356,0.06,178.73,178.72,7.13416267]
[1752861543557,0.75,178.73,178.72,0.03]
[1752861543962,0.06,178.73,178.72,0.03]
[1752861544158,0.06,178.73,178.72,7.13416267]
[1752861545361,0.06,178.73,178.72,0.03]